[Event "IV Elllobregat Open Chess Tmnt"]
[Site "Sant Boi de Llobregat, Spain"]
[Date "2023.12.02"]
[Round "3.22"]
[White "Vega Gutierrez, Sabrina"]
[Black "Alsina Leal, Daniel"]
[Result "0-1"]
[TimeControl "90min/40moves + 15min/end + 30sec from move 1"]
[WhiteFideId "2219026"]
[BlackFideId "2252627"]
[WhiteElo "2381"]
[BlackElo "2533"]

1. e4 {[%clk 01:30:55]} {[%emt 00:00:04]} c5 {[%clk 01:30:52]} {[%emt
00:00:08]} 2. Nf3 {[%clk 01:31:18]} {[%emt 00:00:07]} d6 {[%clk 01:31:15]}
{[%emt 00:00:08]} 3. d4 {[%clk 01:31:41]} {[%emt 00:00:07]} cxd4 {[%clk
01:31:37]} {[%emt 00:00:08]} 4. Nxd4 {[%clk 01:32:02]} {[%emt 00:00:08]} Nf6
{[%clk 01:31:59]} {[%emt 00:00:09]} 5. Nc3 {[%clk 01:32:25]} {[%emt 00:00:07]}
g6 {[%clk 01:32:15]} {[%emt 00:00:14]} 6. Be3 {[%clk 01:32:30]} {[%emt
00:00:24]} Bg7 {[%clk 01:32:29]} {[%emt 00:00:16]} 7. f3 {[%clk 01:32:31]}
{[%emt 00:00:29]} O-O {[%clk 01:32:37]} {[%emt 00:00:22]} 8. Qd2 {[%clk
01:32:34]} {[%emt 00:00:27]} Nc6 {[%clk 01:32:41]} {[%emt 00:00:26]} 9. Nb3
{[%clk 01:32:41]} {[%emt 00:00:23]} a5 {[%clk 01:20:40]} {[%emt 00:12:32]} 10.
a4 {[%clk 01:32:56]} {[%emt 00:00:15]} Nb4 {[%clk 01:11:52]} {[%emt 00:09:18]}
11. O-O-O {[%clk 01:18:02]} {[%emt 00:15:22]} Be6 {[%clk 01:04:23]} {[%emt
00:08:01]} 12. Kb1 {[%clk 01:12:57]} {[%emt 00:05:35]} Rc8 {[%clk 01:02:20]}
{[%emt 00:02:33]} 13. Bb5 {[%clk 01:08:13]} {[%emt 00:05:14]} Nd7 {[%clk
00:52:00]} {[%emt 00:10:51]} 14. Bd4 {[%clk 00:59:20]} {[%emt 00:09:22]} Ne5
{[%clk 00:26:43]} {[%emt 00:25:47]} 15. f4 {[%clk 00:45:03]} {[%emt 00:14:47]}
Nc4 {[%clk 00:19:56]} {[%emt 00:07:17]} 16. Qe2 {[%clk 00:42:40]} {[%emt
00:02:52]} Qc7 {[%clk 00:19:02]} {[%emt 00:01:24]} 17. Bxg7 {[%clk 00:25:18]}
{[%emt 00:17:52]} Kxg7 {[%clk 00:19:16]} {[%emt 00:00:17]} 18. Nd5 {[%clk
00:19:45]} {[%emt 00:06:03]} Bxd5 {[%clk 00:15:33]} {[%emt 00:04:13]} 19. exd5
{[%clk 00:20:13]} {[%emt 00:00:02]} Ne3 {[%clk 00:13:38]} {[%emt 00:02:25]} 20.
c3 {[%clk 00:10:48]} {[%emt 00:09:55]} Nbxd5 {[%clk 00:11:20]} {[%emt
00:02:48]} 21. Rd3 {[%clk 00:03:17]} {[%emt 00:08:01]} Nxg2 {[%clk 00:09:56]}
{[%emt 00:01:54]} 22. Rxd5 {[%clk 00:02:11]} {[%emt 00:01:36]} Nxf4 {[%clk
00:10:20]} {[%emt 00:00:06]} 23. Qf3 {[%clk 00:02:24]} {[%emt 00:00:17]} Nxd5
{[%clk 00:10:14]} {[%emt 00:00:36]} 24. Qxd5 {[%clk 00:02:52]} {[%emt
00:00:01]} e6 {[%clk 00:07:21]} {[%emt 00:03:23]} 25. Qd4+ {[%clk 00:03:21]}
{[%emt 00:00:02]} e5 {[%clk 00:06:17]} {[%emt 00:01:34]} 26. Qd5 {[%clk
00:03:47]} {[%emt 00:00:04]} f5 {[%clk 00:06:24]} {[%emt 00:00:23]} 27. Rd1
{[%clk 00:03:21]} {[%emt 00:00:55]} Rf6 {[%clk 00:06:35]} {[%emt 00:00:19]} 28.
Nd2 {[%clk 00:02:02]} {[%emt 00:01:49]} Qe7 {[%clk 00:03:20]} {[%emt 00:03:46]}
29. Nc4 {[%clk 00:02:17]} {[%emt 00:00:15]} Rc5 {[%clk 00:03:44]} {[%emt
00:00:06]} 30. Qd2 {[%clk 00:01:41]} {[%emt 00:01:06]} d5 {[%clk 00:04:02]}
{[%emt 00:00:13]} 31. Nxa5 {[%clk 00:00:43]} {[%emt 00:01:28]} Rd6 {[%clk
00:04:15]} {[%emt 00:00:16]} 32. Nc4 {[%clk 00:00:36]} {[%emt 00:00:38]} Rd8
{[%clk 00:03:59]} {[%emt 00:00:46]} 33. Qe3 {[%clk 00:00:52]} {[%emt 00:00:14]}
Rxc4 {[%clk 00:03:33]} {[%emt 00:00:56]} 34. Bxc4 {[%clk 00:01:14]} {[%emt
00:00:08]} dxc4 {[%clk 00:03:58]} {[%emt 00:00:05]} 35. Rxd8 {[%clk 00:01:37]}
{[%emt 00:00:08]} Qxd8 {[%clk 00:04:27]} {[%emt 00:00:01]} 36. Qxe5+ {[%clk
00:01:58]} {[%emt 00:00:09]} Kf7 {[%clk 00:04:01]} {[%emt 00:00:55]} 37. Qb5
{[%clk 00:00:34]} {[%emt 00:01:54]} Qd3+ {[%clk 00:02:53]} {[%emt 00:01:38]} 38.
Ka2 {[%clk 00:00:58]} {[%emt 00:00:06]} Qe4 {[%clk 00:03:19]} {[%emt 00:00:05]}
39. Qd7+ {[%clk 00:01:00]} {[%emt 00:00:29]} Kg8 {[%clk 00:03:23]} {[%emt
00:00:25]} 40. a5 {[%clk 00:15:31]} {[%emt 00:00:59]} f4 {[%clk 00:16:21]}
{[%emt 00:02:31]} 41. h4 {[%clk 00:15:00]} {[%emt 00:01:01]} f3 {[%clk
00:14:34]} {[%emt 00:02:18]} 42. Qd8+ {[%clk 00:12:24]} {[%emt 00:03:06]} Kg7
{[%clk 00:09:37]} {[%emt 00:05:26]} 43. Qd7+ {[%clk 00:12:50]} {[%emt
00:00:05]} Kf6 {[%clk 00:06:43]} {[%emt 00:03:23]} 44. Qxh7 {[%clk 00:07:03]}
{[%emt 00:06:17]} Qd5 {[%clk 00:06:35]} {[%emt 00:00:37]} 45. Qh8+ {[%clk
00:05:19]} {[%emt 00:02:15]} Kf5 {[%clk 00:05:55]} {[%emt 00:01:09]} 46. h5
{[%clk 00:05:45]} {[%emt 00:00:05]} gxh5 {[%clk 00:05:22]} {[%emt 00:01:04]} 47.
Qxh5+ {[%clk 00:06:04]} {[%emt 00:00:10]} Ke4 {[%clk 00:05:47]} {[%emt
00:00:04]} 48. Qh4+ {[%clk 00:04:19]} {[%emt 00:02:15]} Kd3 {[%clk 00:05:08]}
{[%emt 00:01:09]} 49. Qf2 {[%clk 00:04:28]} {[%emt 00:00:22]} Qxa5+ {[%clk
00:02:41]} {[%emt 00:02:58]} 50. Kb1 {[%clk 00:04:57]} {[%emt 00:00:01]} Qd5
{[%clk 00:02:56]} {[%emt 00:00:14]} 51. Kc1 {[%clk 00:05:16]} {[%emt 00:00:11]}
Ke4 {[%clk 00:02:54]} {[%emt 00:00:31]} 52. Qh4+ {[%clk 00:05:18]} {[%emt
00:00:29]} Ke5 {[%clk 00:03:04]} {[%emt 00:00:20]} 53. Qg5+ {[%clk 00:05:08]}
{[%emt 00:00:40]} Kd6 {[%clk 00:03:25]} {[%emt 00:00:09]} 54. Qf6+ {[%clk
00:00:45]} {[%emt 00:04:52]} Kd7 {[%clk 00:03:29]} {[%emt 00:00:27]} 55. Qg7+
{[%clk 00:00:57]} {[%emt 00:00:18]} Kc6 {[%clk 00:03:10]} {[%emt 00:00:48]} 56.
Qg6+ {[%clk 00:01:08]} {[%emt 00:00:19]} Kc5 {[%clk 00:02:31]} {[%emt
00:01:03]} 57. Qf6 {[%clk 00:01:16]} {[%emt 00:00:30]} Qe4 {[%clk 00:01:45]}
{[%emt 00:01:15]} 58. Qf8+ {[%clk 00:00:48]} {[%emt 00:00:59]} Kb5 {[%clk
00:01:39]} {[%emt 00:00:34]} 59. Qb4+ {[%clk 00:00:41]} {[%emt 00:00:39]} Kc6
{[%clk 00:02:03]} {[%emt 00:00:06]} 60. Qa4+ {[%clk 00:01:03]} {[%emt
00:00:08]} Kd6 {[%clk 00:00:39]} {[%emt 00:01:53]} 61. Qb4+ {[%clk 00:01:30]}
{[%emt 00:00:04]} Ke6 {[%clk 00:00:55]} {[%emt 00:00:14]} 62. Qb6+ {[%clk
00:01:49]} {[%emt 00:00:11]} Kf5 {[%clk 00:01:09]} {[%emt 00:00:16]} 63. Qc5+
{[%clk 00:00:37]} {[%emt 00:01:43]} Kg4 {[%clk 00:01:24]} {[%emt 00:00:14]} 64.
Qg1+ {[%clk 00:01:03]} {[%emt 00:00:04]} Kf5 {[%clk 00:01:36]} {[%emt
00:00:19]} 65. Qc5+ {[%clk 00:01:18]} {[%emt 00:00:14]} Kf4 {[%clk 00:01:41]}
{[%emt 00:00:24]} 66. Qd6+ {[%clk 00:00:37]} {[%emt 00:01:12]} Kg4 {[%clk
00:02:05]} {[%emt 00:00:06]} 67. Qd2 {[%clk 00:00:32]} {[%emt 00:00:35]} Qf4
{[%emt 00:00:27]} 0-1

[Event "IV Elllobregat Open Chess Tmnt"]
[Site "Sant Boi de Llobregat, Spain"]
[Date "2023.12.02"]
[Round "3.23"]
[White "Lamard, Guillaume"]
[Black "Suarez Uriel, Adrian"]
[Result "1-0"]
[TimeControl "90min/40moves + 15min/end + 30sec from move 1"]
[WhiteFideId "600261"]
[BlackFideId "22230874"]
[WhiteElo "2514"]
[BlackElo "2375"]

1. e4 {[%clk 01:30:57]} {[%emt 00:00:03]} c5 {[%clk 01:24:49]} {[%emt
00:06:04]} 2. Nf3 {[%clk 01:31:24]} {[%emt 00:00:10]} d6 {[%clk 01:25:04]}
{[%emt 00:00:15]} 3. d4 {[%clk 01:31:44]} {[%emt 00:00:10]} cxd4 {[%clk
01:25:28]} {[%emt 00:00:05]} 4. Nxd4 {[%clk 01:32:11]} {[%emt 00:00:03]} Nf6
{[%clk 01:25:54]} {[%emt 00:00:04]} 5. Nc3 {[%clk 01:32:37]} {[%emt 00:00:04]}
a6 {[%clk 01:26:22]} {[%emt 00:00:02]} 6. f3 {[%clk 01:32:54]} {[%emt
00:00:13]} e5 {[%clk 01:26:45]} {[%emt 00:00:07]} 7. Nb3 {[%clk 01:33:19]}
{[%emt 00:00:04]} Be6 {[%clk 01:27:09]} {[%emt 00:00:06]} 8. Be3 {[%clk
01:33:40]} {[%emt 00:00:09]} Be7 {[%clk 01:27:33]} {[%emt 00:00:05]} 9. Qd2
{[%clk 01:34:05]} {[%emt 00:00:06]} h5 {[%clk 01:27:58]} {[%emt 00:00:05]} 10.
Be2 {[%clk 01:34:22]} {[%emt 00:00:13]} Nbd7 {[%clk 01:28:23]} {[%emt
00:00:06]} 11. Nd5 {[%clk 01:34:47]} {[%emt 00:00:06]} Bxd5 {[%clk 01:28:30]}
{[%emt 00:00:23]} 12. exd5 {[%clk 01:35:11]} {[%emt 00:00:05]} Qc7 {[%clk
01:28:51]} {[%emt 00:00:09]} 13. Rc1 {[%clk 01:35:27]} {[%emt 00:00:14]} h4
{[%clk 01:24:39]} {[%emt 00:04:42]} 14. O-O {[%clk 01:32:02]} {[%emt 00:03:55]}
Nh5 {[%clk 01:19:49]} {[%emt 00:05:20]} 15. Rfd1 {[%clk 01:31:59]} {[%emt
00:00:33]} O-O {[%clk 01:09:45]} {[%emt 00:10:35]} 16. a4 {[%clk 01:21:34]}
{[%emt 00:10:56]} f5 {[%clk 01:02:18]} {[%emt 00:07:56]} 17. c4 {[%clk
01:21:15]} {[%emt 00:00:49]} h3 {[%clk 00:42:58]} {[%emt 00:19:50]} 18. c5
{[%clk 01:08:42]} {[%emt 00:13:03]} Bh4 {[%clk 00:33:39]} {[%emt 00:09:49]} 19.
c6 {[%clk 00:58:40]} {[%emt 00:10:33]} Ndf6 {[%clk 00:34:04]} {[%emt 00:00:05]}
20. Qb4 {[%clk 00:58:57]} {[%emt 00:00:13]} Nf4 {[%clk 00:24:28]} {[%emt
00:10:06]} 21. Bxf4 {[%clk 00:53:44]} {[%emt 00:05:43]} exf4 {[%clk 00:24:56]}
{[%emt 00:00:01]} 22. Qxb7 {[%clk 00:51:23]} {[%emt 00:02:51]} Qd8 {[%clk
00:24:10]} {[%emt 00:01:16]} 23. Nd4 {[%clk 00:41:32]} {[%emt 00:10:21]} Qe8
{[%clk 00:22:34]} {[%emt 00:02:06]} 24. Ne6 {[%clk 00:31:17]} {[%emt 00:10:45]}
Qg6 {[%clk 00:22:51]} {[%emt 00:00:13]} 25. Bf1 {[%clk 00:23:00]} {[%emt
00:08:47]} hxg2 {[%clk 00:23:12]} {[%emt 00:00:09]} 26. Bd3 {[%clk 00:22:06]}
{[%emt 00:01:24]} Ne4 {[%clk 00:19:34]} {[%emt 00:04:07]} 27. Rc2 {[%clk
00:20:12]} {[%emt 00:02:26]} Bf2+ {[%clk 00:06:37]} {[%emt 00:13:26]} 28. Rxf2
{[%clk 00:20:37]} {[%emt 00:00:04]} Nxf2 {[%clk 00:07:06]} {[%emt 00:00:02]} 29.
Kxf2 {[%clk 00:20:45]} {[%emt 00:00:22]} Rab8 {[%clk 00:07:34]} {[%emt
00:00:03]} 30. Nxf8 {[%clk 00:17:39]} {[%emt 00:03:35]} Qe8 {[%clk 00:07:58]}
{[%emt 00:00:06]} 31. Ne6 {[%clk 00:15:39]} {[%emt 00:02:31]} Rxb7 {[%clk
00:07:58]} {[%emt 00:00:29]} 32. cxb7 {[%clk 00:16:05]} {[%emt 00:00:04]} Qb8
{[%clk 00:08:13]} {[%emt 00:00:15]} 33. Bxa6 {[%clk 00:16:02]} {[%emt
00:00:33]} Kh7 {[%clk 00:08:38]} {[%emt 00:00:04]} 34. Kxg2 {[%clk 00:14:32]}
{[%emt 00:02:01]} 1-0

[Event "IV Elllobregat Open Chess Tmnt"]
[Site "Sant Boi de Llobregat, Spain"]
[Date "2023.12.02"]
[Round "3.24"]
[White "Anand, Batsukh"]
[Black "Bharath, Subramaniyam H"]
[Result "1/2-1/2"]
[TimeControl "90min/40moves + 15min/end + 30sec from move 1"]
[WhiteFideId "4903510"]
[BlackFideId "46634827"]
[WhiteElo "2369"]
[BlackElo "2504"]

1. Nf3 {[%emt 00:02:10]} d5 {[%clk 01:28:01]} {[%emt 00:00:39]} 2. d4 {[%clk
01:31:24]} {[%emt 00:00:16]} Nf6 {[%clk 01:27:35]} {[%emt 00:00:55]} 3. c4
{[%clk 01:31:47]} {[%emt 00:00:08]} e6 {[%clk 01:27:53]} {[%emt 00:00:12]} 4.
g3 {[%clk 01:31:45]} {[%emt 00:00:32]} Bb4+ {[%clk 01:27:11]} {[%emt 00:01:12]}
5. Bd2 {[%clk 01:32:06]} {[%emt 00:00:08]} Be7 {[%clk 01:27:29]} {[%emt
00:00:13]} 6. Bg2 {[%clk 01:32:29]} {[%emt 00:00:07]} O-O {[%clk 01:27:28]}
{[%emt 00:00:31]} 7. O-O {[%clk 01:32:48]} {[%emt 00:00:10]} c6 {[%clk
01:27:45]} {[%emt 00:00:14]} 8. Qc2 {[%clk 01:32:50]} {[%emt 00:00:28]} Nbd7
{[%clk 01:28:04]} {[%emt 00:00:10]} 9. Rd1 {[%clk 01:32:37]} {[%emt 00:00:44]}
a5 {[%clk 01:27:40]} {[%emt 00:00:54]} 10. Bf4 {[%clk 01:30:37]} {[%emt
00:02:29]} a4 {[%clk 01:27:17]} {[%emt 00:00:54]} 11. Nc3 {[%clk 01:24:12]}
{[%emt 00:06:55]} Qa5 {[%clk 01:26:53]} {[%emt 00:00:53]} 12. c5 {[%clk
01:17:45]} {[%emt 00:06:57]} b6 {[%clk 01:07:56]} {[%emt 00:19:27]} 13. cxb6
{[%clk 01:16:15]} {[%emt 00:02:01]} Bb7 {[%clk 01:02:54]} {[%emt 00:05:31]} 14.
e4 {[%clk 01:07:26]} {[%emt 00:09:19]} Nxb6 {[%clk 00:45:34]} {[%emt 00:17:50]}
15. e5 {[%clk 01:03:38]} {[%emt 00:04:17]} Nfd7 {[%clk 00:44:11]} {[%emt
00:01:54]} 16. Bd2 {[%clk 00:58:04]} {[%emt 00:06:04]} Qa7 {[%clk 00:33:21]}
{[%emt 00:11:21]} 17. Bg5 {[%clk 00:55:35]} {[%emt 00:02:59]} Rfe8 {[%clk
00:31:29]} {[%emt 00:02:21]} 18. h4 {[%clk 00:51:48]} {[%emt 00:04:17]} Nc4
{[%clk 00:26:17]} {[%emt 00:05:41]} 19. b3 {[%clk 00:38:55]} {[%emt 00:13:24]}
Ncb6 {[%clk 00:15:28]} {[%emt 00:11:19]} 20. Rab1 {[%clk 00:37:20]} {[%emt
00:02:05]} axb3 {[%clk 00:13:25]} {[%emt 00:02:33]} 21. axb3 {[%clk 00:37:42]}
{[%emt 00:00:08]} Bb4 {[%clk 00:10:51]} {[%emt 00:03:02]} 22. h5 {[%clk
00:33:28]} {[%emt 00:04:47]} Qa5 {[%clk 00:10:30]} {[%emt 00:00:51]} 23. Ne2
{[%clk 00:32:02]} {[%emt 00:01:56]} h6 {[%clk 00:09:39]} {[%emt 00:01:22]} 24.
Bd2 {[%clk 00:30:06]} {[%emt 00:02:26]} c5 {[%clk 00:08:26]} {[%emt 00:01:43]}
25. Bxb4 {[%clk 00:29:36]} {[%emt 00:01:00]} Qxb4 {[%clk 00:07:22]} {[%emt
00:01:34]} 26. dxc5 {[%clk 00:28:39]} {[%emt 00:01:27]} Nxc5 {[%clk 00:06:20]}
{[%emt 00:01:32]} 27. Rd4 {[%clk 00:28:17]} {[%emt 00:00:53]} Qa3 {[%clk
00:06:01]} {[%emt 00:00:49]} 28. Nc3 {[%clk 00:27:26]} {[%emt 00:01:20]} Ba6
{[%clk 00:01:32]} {[%emt 00:05:00]} 29. b4 {[%clk 00:22:20]} {[%emt 00:05:36]}
Bd3 {[%clk 00:01:44]} {[%emt 00:00:17]} 30. Rxd3 {[%clk 00:22:30]} {[%emt
00:00:20]} Nxd3 {[%clk 00:02:13]} {[%emt 00:00:02]} 31. Nb5 {[%clk 00:22:44]}
{[%emt 00:00:16]} Nxb4 {[%clk 00:02:42]} {[%emt 00:00:02]} 32. Qc5 {[%clk
00:21:04]} {[%emt 00:02:09]} Qa5 {[%clk 00:01:49]} {[%emt 00:01:23]} 33. Qxb4
{[%clk 00:14:37]} {[%emt 00:06:57]} Qxb4 {[%clk 00:02:18]} {[%emt 00:00:02]} 34.
Rxb4 {[%clk 00:14:59]} {[%emt 00:00:08]} Nc4 {[%clk 00:02:32]} {[%emt
00:00:15]} 35. Bf1 {[%clk 00:13:42]} {[%emt 00:01:46]} Rab8 {[%clk 00:01:26]}
{[%emt 00:01:37]} 36. Rxc4 {[%clk 00:06:33]} {[%emt 00:07:39]} dxc4 {[%clk
00:01:29]} {[%emt 00:00:27]} 37. Bxc4 {[%clk 00:07:00]} {[%emt 00:00:04]} Rec8
{[%clk 00:01:32]} {[%emt 00:00:26]} 38. Nd6 {[%clk 00:06:09]} {[%emt 00:01:20]}
Rc5 {[%clk 00:01:49]} {[%emt 00:00:13]} 39. Kg2 {[%clk 00:03:15]} {[%emt
00:03:24]} Rb4 {[%clk 00:01:53]} {[%emt 00:00:27]} 40. Bd3 {[%clk 00:18:23]}
{[%emt 00:00:21]} Rc3 {[%clk 00:16:20]} {[%emt 00:01:04]} 41. Be2 {[%clk
00:16:15]} {[%emt 00:02:37]} Kf8 {[%clk 00:13:28]} {[%emt 00:03:23]} 42. Nb5
{[%clk 00:11:01]} {[%emt 00:05:44]} Rc2 {[%clk 00:12:34]} {[%emt 00:01:25]} 43.
Bd3 {[%clk 00:08:59]} {[%emt 00:02:31]} Ra2 {[%clk 00:11:48]} {[%emt 00:01:16]}
44. Nd6 {[%clk 00:08:04]} {[%emt 00:01:25]} Ra3 {[%clk 00:11:23]} {[%emt
00:00:56]} 45. Bf1 {[%clk 00:07:30]} {[%emt 00:01:04]} Ra1 {[%clk 00:08:28]}
{[%emt 00:03:25]} 46. Bd3 {[%clk 00:06:47]} {[%emt 00:01:13]} Rd1 {[%clk
00:07:02]} {[%emt 00:01:56]} 47. Be2 {[%clk 00:06:50]} {[%emt 00:00:26]} Rc1
{[%clk 00:07:06]} {[%emt 00:00:27]} 48. Nb5 {[%clk 00:04:58]} {[%emt 00:02:22]}
Rc5 {[%clk 00:07:02]} {[%emt 00:00:33]} 49. Nbd4 {[%clk 00:04:25]} {[%emt
00:01:02]} Rd5 {[%clk 00:06:52]} {[%emt 00:00:40]} 50. Nc2 {[%clk 00:04:37]}
{[%emt 00:00:18]} Rb2 {[%clk 00:06:53]} {[%emt 00:00:30]} 51. Ncd4 {[%clk
00:04:57]} {[%emt 00:00:09]} Rxd4 {[%clk 00:05:52]} {[%emt 00:01:32]} 52. Nxd4
{[%clk 00:04:59]} {[%emt 00:00:28]} Rd2 {[%clk 00:06:10]} {[%emt 00:00:11]} 53.
Nxe6+ {[%clk 00:05:03]} {[%emt 00:00:25]} fxe6 {[%clk 00:06:38]} {[%emt
00:00:02]} 54. Kf3 {[%clk 00:04:56]} {[%emt 00:00:36]} Ke7 {[%clk 00:05:34]}
{[%emt 00:01:35]} 55. Ke3 {[%clk 00:05:00]} {[%emt 00:00:26]} Rb2 {[%clk
00:04:56]} {[%emt 00:01:09]} 56. f4 {[%clk 00:05:02]} {[%emt 00:00:27]} Rb3+
{[%clk 00:04:37]} {[%emt 00:00:50]} 57. Kf2 {[%clk 00:05:27]} {[%emt 00:00:05]}
Kd7 {[%clk 00:04:56]} {[%emt 00:00:11]} 58. Bg4 {[%clk 00:05:46]} {[%emt
00:00:11]} Rc3 {[%clk 00:04:54]} {[%emt 00:00:33]} 59. Kg2 {[%clk 00:05:34]}
{[%emt 00:00:41]} Ra3 {[%clk 00:04:19]} {[%emt 00:01:06]} 60. Kf2 {[%clk
00:05:50]} {[%emt 00:00:13]} Rc3 {[%clk 00:04:48]} {[%emt 00:00:02]} 61. Kg2
{[%clk 00:06:14]} {[%emt 00:00:06]} Rc6 {[%clk 00:05:00]} {[%emt 00:00:18]} 62.
Kf3 {[%clk 00:06:23]} {[%emt 00:00:22]} Ra6 {[%clk 00:04:04]} {[%emt 00:01:26]}
63. Kf2 {[%clk 00:06:26]} {[%emt 00:00:25]} Ra3 {[%clk 00:03:51]} {[%emt
00:00:43]} 64. Kg2 {[%clk 00:06:51]} {[%emt 00:00:05]} Ra2+ {[%clk 00:04:17]}
{[%emt 00:00:05]} 65. Kf3 {[%clk 00:07:15]} {[%emt 00:00:06]} Rh2 {[%clk
00:04:42]} {[%emt 00:00:05]} 66. Ke3 {[%clk 00:06:19]} {[%emt 00:01:27]} Ke7
{[%clk 00:04:20]} {[%emt 00:00:52]} 67. Kf3 {[%clk 00:06:34]} {[%emt 00:00:14]}
Kd7 {[%clk 00:04:26]} {[%emt 00:00:24]} 68. Ke3 {[%clk 00:06:59]} {[%emt
00:00:05]} Ke7 {[%clk 00:04:32]} {[%emt 00:00:24]} 69. Kf3 {[%clk 00:07:25]}
{[%emt 00:00:04]} Kd7 {[%clk 00:04:53]} {[%emt 00:00:09]} 1/2-1/2

[Event "IV Elllobregat Open Chess Tmnt"]
[Site "Sant Boi de Llobregat, Spain"]
[Date "2023.12.02"]
[Round "3.25"]
[White "Savitha, Shri B"]
[Black "Szpar, Milosz"]
[Result "0-1"]
[TimeControl "90min/40moves + 15min/end + 30sec from move 1"]
[WhiteFideId "35061887"]
[BlackFideId "1184989"]
[WhiteElo "2364"]
[BlackElo "2485"]

1. e4 {[%emt 00:02:37]} e6 {[%clk 01:30:50]} 2. d4 {[%clk 01:28:57]} {[%emt
00:00:05]} d5 {[%clk 01:31:15]} {[%emt 00:00:04]} 3. Nc3 {[%clk 01:28:48]}
{[%emt 00:00:38]} Nf6 {[%clk 01:31:37]} {[%emt 00:00:07]} 4. e5 {[%clk
01:29:14]} {[%emt 00:00:06]} Nfd7 {[%clk 01:32:01]} {[%emt 00:00:04]} 5. f4
{[%clk 01:29:38]} {[%emt 00:00:07]} c5 {[%clk 01:32:25]} {[%emt 00:00:06]} 6.
Nf3 {[%clk 01:30:04]} {[%emt 00:00:03]} Nc6 {[%clk 01:28:08]} {[%emt 00:04:48]}
7. Be3 {[%clk 01:28:53]} {[%emt 00:01:42]} cxd4 {[%clk 01:28:33]} {[%emt
00:00:05]} 8. Nxd4 {[%clk 01:27:32]} {[%emt 00:01:52]} Qb6 {[%clk 01:28:58]}
{[%emt 00:00:04]} 9. Qd2 {[%clk 01:23:35]} {[%emt 00:04:26]} Qxb2 {[%clk
01:28:07]} {[%emt 00:01:20]} 10. Rb1 {[%clk 01:23:29]} {[%emt 00:00:36]} Qa3
{[%clk 01:28:32]} {[%emt 00:00:05]} 11. Bb5 {[%clk 01:00:22]} {[%emt 00:23:37]}
Nxd4 {[%clk 01:27:55]} {[%emt 00:01:08]} 12. Bxd4 {[%clk 01:00:38]} {[%emt
00:00:15]} a6 {[%clk 01:27:46]} {[%emt 00:00:39]} 13. Bxd7+ {[%clk 00:58:12]}
{[%emt 00:02:56]} Bxd7 {[%clk 01:28:08]} {[%emt 00:00:07]} 14. Rb3 {[%clk
00:58:38]} {[%emt 00:00:04]} Qe7 {[%clk 01:28:21]} {[%emt 00:00:17]} 15. Rxb7
{[%clk 00:58:48]} {[%emt 00:00:21]} Rc8 {[%clk 01:24:53]} {[%emt 00:03:57]} 16.
O-O {[%clk 00:56:13]} {[%emt 00:03:05]} Qd8 {[%clk 01:24:28]} {[%emt 00:00:55]}
17. Qe3 {[%clk 00:46:35]} {[%emt 00:10:09]} Rc4 {[%clk 01:09:14]} {[%emt
00:15:44]} 18. Kh1 {[%clk 00:39:41]} {[%emt 00:07:25]} Be7 {[%clk 01:00:49]}
{[%emt 00:08:53]} 19. f5 {[%emt 00:09:14]} Bg5 {[%emt 00:07:58]} 20. Qd3 {[%emt
00:08:32]} O-O {[%emt 00:01:48]} 21. f6 {[%clk 00:28:07]} {[%emt 00:00:31]}
gxf6 {[%clk 00:29:05]} {[%emt 00:18:15]} 22. exf6 {[%clk 00:27:05]} {[%emt
00:01:33]} h6 {[%clk 00:28:24]} {[%emt 00:01:11]} 23. Be5 {[%clk 00:23:23]}
{[%emt 00:04:13]} Kh8 {[%clk 00:26:13]} {[%emt 00:02:40]} 24. Rb8 {[%clk
00:18:46]} {[%emt 00:05:07]} Qxb8 {[%clk 00:24:41]} {[%emt 00:02:01]} 25. Bxb8
{[%clk 00:19:13]} {[%emt 00:00:04]} Rxb8 {[%clk 00:25:05]} {[%emt 00:00:06]} 26.
Qg3 {[%clk 00:15:54]} {[%emt 00:03:49]} Rg8 {[%clk 00:21:27]} {[%emt 00:04:07]}
27. Qd6 {[%clk 00:14:21]} {[%emt 00:02:04]} Bc6 {[%clk 00:20:34]} {[%emt
00:01:22]} 28. Ne2 {[%clk 00:11:33]} {[%emt 00:03:19]} d4 {[%clk 00:19:49]}
{[%emt 00:01:14]} 29. Ng3 {[%clk 00:04:48]} {[%emt 00:07:16]} Rxc2 {[%clk
00:20:02]} {[%emt 00:00:16]} 30. Rg1 {[%clk 00:04:05]} {[%emt 00:01:13]} Be3
{[%clk 00:19:47]} {[%emt 00:00:45]} 31. Qe7 {[%clk 00:03:26]} {[%emt 00:01:09]}
Bxg1 {[%clk 00:19:20]} {[%emt 00:00:57]} 32. Kxg1 {[%clk 00:03:52]} {[%emt
00:00:05]} Rxg2+ {[%clk 00:18:42]} {[%emt 00:01:08]} 33. Kf1 {[%clk 00:04:20]}
{[%emt 00:00:02]} Rb8 {[%clk 00:17:58]} {[%emt 00:01:13]} 0-1